[Event "Titled Tuesday Blitz July 11 Late 2023"]
[White "Ovchinnikov, Vsevolod"]
[Black "Mindhunter08"]
[WhiteFideId "24176842"]
[WhiteElo "2641"]
[BlackElo "2512"]
[Result "1-0"]
[Round "8"]
[TimeControl "180+2"]
[Date "2023.07.11"]
[WhiteClock "0:00:22"]
[BlackClock "0:00:15"]
[Board "51"]

1. d4 {[%clk 0:03:00]}  d5 {[%clk 0:02:57]} 2. c4 {[%clk 0:03:01]}  c6 {[%clk 0:02:57]} 3. Nf3 {[%clk 0:03:01]}  Nf6 {[%clk 0:02:57]} 4. g3 {[%clk 0:03:02]}  Bf5 {[%clk 0:02:55]} 5. Nc3 {[%clk 0:02:59]}  e6 {[%clk 0:02:54]} 6. Nh4 {[%clk 0:02:56]}  dxc4 {[%clk 0:02:55]} 7. Nxf5 {[%clk 0:02:52]}  exf5 {[%clk 0:02:55]} 8. e3 {[%clk 0:02:49]}  b5 {[%clk 0:02:51]} 9. Qf3 {[%clk 0:02:44]}  Bb4 {[%clk 0:02:37]} 10. Qxf5 {[%clk 0:02:40]}  Qd5 {[%clk 0:02:22]} 11. Qxd5 {[%clk 0:02:38]}  Nxd5 {[%clk 0:02:18]} 12. Bd2 {[%clk 0:02:39]}  Nd7 {[%clk 0:02:10]} 13. Bg2 {[%clk 0:02:35]}  N7f6 {[%clk 0:02:03]} 14. a4 {[%clk 0:02:09]}  Bxc3 {[%clk 0:01:04]} 15. bxc3 {[%clk 0:02:09]}  b4 {[%clk 0:01:00]} 16. cxb4 {[%clk 0:02:08]}  c3 {[%clk 0:01:00]} 17. Bc1 {[%clk 0:02:08]}  Nxb4 {[%clk 0:01:00]} 18. Rb1 {[%clk 0:02:03]}  a5 {[%clk 0:00:56]} 19. Ke2 {[%clk 0:01:45]}  O-O {[%clk 0:00:55]} 20. Rb3 {[%clk 0:01:33]}  c2 {[%clk 0:00:46]} 21. Ba3 {[%clk 0:01:20]}  Rab8 {[%clk 0:00:33]} 22. Kd2 {[%clk 0:00:49]}  Rfc8 {[%clk 0:00:23]} 23. Bxb4 {[%clk 0:00:29]}  axb4 {[%clk 0:00:23]} 24. Rc1 {[%clk 0:00:23]}  c5 {[%clk 0:00:19]} 25. dxc5 {[%clk 0:00:23]}  Rxc5 {[%clk 0:00:19]} 26. Rxc2 {[%clk 0:00:24]}  Rd8+ {[%clk 0:00:19]} 27. Kc1 {[%clk 0:00:23]}  Rh5 {[%clk 0:00:13]} 28. h4 {[%clk 0:00:18]}  Rb8 {[%clk 0:00:11]} 29. Rc4 {[%clk 0:00:17]}  Rf5 {[%clk 0:00:08]} 30. f4 {[%clk 0:00:15]}  g6 {[%clk 0:00:07]} 31. Bf3 {[%clk 0:00:13]}  Ra5 {[%clk 0:00:07]} 32. Rbxb4 {[%clk 0:00:13]}  Re8 {[%clk 0:00:07]} 33. Kd2 {[%clk 0:00:13]}  Nd7 {[%clk 0:00:07]} 34. Rb5 {[%clk 0:00:12]}  Ra7 {[%clk 0:00:07]} 35. Rb7 {[%clk 0:00:12]}  Rxb7 {[%clk 0:00:06]} 36. Bxb7 {[%clk 0:00:13]}  Nb6 {[%clk 0:00:07]} 37. Rb4 {[%clk 0:00:12]}  Rd8+ {[%clk 0:00:08]} 38. Ke2 {[%clk 0:00:12]}  Nd7 {[%clk 0:00:07]} 39. Rd4 {[%clk 0:00:12]}  Kf8 {[%clk 0:00:07]} 40. Bc6 {[%clk 0:00:12]}  Ke7 {[%clk 0:00:06]} 41. Rxd7+ {[%clk 0:00:12]}  Rxd7 {[%clk 0:00:07]} 42. Bxd7 {[%clk 0:00:13]}  Kxd7 {[%clk 0:00:08]} 43. Kd3 {[%clk 0:00:14]}  Kc7 {[%clk 0:00:08]} 44. Kc4 {[%clk 0:00:14]}  Kb6 {[%clk 0:00:09]} 45. Kb4 {[%clk 0:00:15]}  f5 {[%clk 0:00:10]} 46. a5+ {[%clk 0:00:14]}  Ka6 {[%clk 0:00:11]} 47. Ka4 {[%clk 0:00:15]}  Ka7 {[%clk 0:00:11]} 48. Kb5 {[%clk 0:00:15]}  Kb7 {[%clk 0:00:12]} 49. a6+ {[%clk 0:00:15]}  Ka7 {[%clk 0:00:13]} 50. Ka5 {[%clk 0:00:16]}  Ka8 {[%clk 0:00:13]} 51. Kb6 {[%clk 0:00:16]}  Kb8 {[%clk 0:00:14]} 52. a7+ {[%clk 0:00:17]}  Ka8 {[%clk 0:00:15]} 53. Ka6 {[%clk 0:00:17]}  h5 {[%clk 0:00:13]} 54. Kb5 {[%clk 0:00:17]}  Kxa7 {[%clk 0:00:13]} 55. Kc6 {[%clk 0:00:18]}  Ka6 {[%clk 0:00:13]} 56. Kd5 {[%clk 0:00:18]}  Kb5 {[%clk 0:00:14]} 57. e4 {[%clk 0:00:18]}  fxe4 {[%clk 0:00:14]} 58. Kxe4 {[%clk 0:00:19]}  Kc4 {[%clk 0:00:15]} 59. f5 {[%clk 0:00:19]}  gxf5+ {[%clk 0:00:15]} 60. Kxf5 {[%clk 0:00:20]}  Kd5 {[%clk 0:00:15]} 61. Kg5 {[%clk 0:00:21]}  Ke4 {[%clk 0:00:16]} 62. Kxh5 {[%clk 0:00:21]}  Kf3 {[%clk 0:00:15]} 63. Kg5 {[%clk 0:00:22]} 1-0


[Site "https://www.chess.com"]

[Event "Titled Tuesday Blitz July 11 Late 2023"]
[White "Keleberda, Tymur"]
[Black "Swayams, Mishra"]
[WhiteFideId "14174294"]
[BlackFideId "5028183"]
[WhiteElo "2550"]
[BlackElo "2608"]
[Result "0-1"]
[Round "8"]
[TimeControl "180+2"]
[Date "2023.07.11"]
[WhiteClock "0:00:00"]
[BlackClock "0:00:11"]
[Board "58"]

1. e4 {[%clk 0:02:53]}  e6 {[%clk 0:02:59]} 2. d3 {[%clk 0:02:52]}  d5 {[%clk 0:03:00]} 3. Nd2 {[%clk 0:02:53]}  Nf6 {[%clk 0:02:59]} 4. Ngf3 {[%clk 0:02:52]}  b6 {[%clk 0:02:53]} 5. g3 {[%clk 0:02:52]}  Nc6 {[%clk 0:02:44]} 6. Bg2 {[%clk 0:02:51]}  dxe4 {[%clk 0:02:44]} 7. dxe4 {[%clk 0:02:52]}  Ba6 {[%clk 0:02:44]} 8. c4 {[%clk 0:02:50]}  Qd3 {[%clk 0:02:42]} 9. Qb3 {[%clk 0:02:43]}  Nb4 {[%clk 0:02:38]} 10. Qxd3 {[%clk 0:02:35]}  Nxd3+ {[%clk 0:02:39]} 11. Ke2 {[%clk 0:02:35]}  O-O-O {[%clk 0:02:39]} 12. b3 {[%clk 0:02:20]}  Bc5 {[%clk 0:02:38]} 13. e5 {[%clk 0:02:19]}  Ng4 {[%clk 0:02:37]} 14. Ne4 {[%clk 0:02:19]}  Ngxf2 {[%clk 0:02:17]} 15. Nxc5 {[%clk 0:02:15]}  bxc5 {[%clk 0:02:18]} 16. Rf1 {[%clk 0:02:13]}  Ne4 {[%clk 0:02:02]} 17. Bd2 {[%clk 0:02:12]}  Bb7 {[%clk 0:02:01]} 18. Rad1 {[%clk 0:02:05]}  Rd7 {[%clk 0:02:00]} 19. Ke3 {[%clk 0:01:51]}  Rhd8 {[%clk 0:01:58]} 20. Ba5 {[%clk 0:01:47]}  Nb2 {[%clk 0:01:48]} 21. Rxd7 {[%clk 0:01:43]}  Rxd7 {[%clk 0:01:49]} 22. Nd2 {[%clk 0:01:19]}  Nxd2 {[%clk 0:00:46]} 23. Bxb7+ {[%clk 0:01:20]}  Kxb7 {[%clk 0:00:47]} 24. Bxd2 {[%clk 0:01:20]}  Nd3 {[%clk 0:00:47]} 25. Bc3 {[%clk 0:01:20]}  Nb4 {[%clk 0:00:47]} 26. Bxb4 {[%clk 0:01:13]}  cxb4 {[%clk 0:00:47]} 27. g4 {[%clk 0:01:06]}  Kc6 {[%clk 0:00:47]} 28. g5 {[%clk 0:01:02]}  a5 {[%clk 0:00:47]} 29. h4 {[%clk 0:01:01]}  Kc5 {[%clk 0:00:41]} 30. h5 {[%clk 0:01:00]}  a4 {[%clk 0:00:41]} 31. h6 {[%clk 0:00:41]}  g6 {[%clk 0:00:36]} 32. bxa4 {[%clk 0:00:19]}  c6 {[%clk 0:00:23]} 33. Rf2 {[%clk 0:00:11]}  Ra7 {[%clk 0:00:23]} 34. Ke4 {[%clk 0:00:10]}  Rxa4 {[%clk 0:00:20]} 35. Rxf7 {[%clk 0:00:10]}  Rxa2 {[%clk 0:00:21]} 36. Rxh7 {[%clk 0:00:10]}  Rh2 {[%clk 0:00:20]} 37. Rc7 {[%clk 0:00:07]}  b3 {[%clk 0:00:20]} 38. Kd3 {[%clk 0:00:06]}  Rh3+ {[%clk 0:00:16]} 39. Kd2 {[%clk 0:00:04]}  Kxc4 {[%clk 0:00:12]} 40. Rxc6+ {[%clk 0:00:04]}  Kd5 {[%clk 0:00:13]} 41. Rc7 {[%clk 0:00:04]}  Kxe5 {[%clk 0:00:13]} 42. Rb7 {[%clk 0:00:03]}  Kf5 {[%clk 0:00:13]} 43. h7 {[%clk 0:00:04]}  Kxg5 {[%clk 0:00:12]} 44. Kc1 {[%clk 0:00:04]}  e5 {[%clk 0:00:11]} 45. Kb2 {[%clk 0:00:04]}  Kf4 {[%clk 0:00:11]} 46. Rf7+ {[%clk 0:00:04]}  Ke4 {[%clk 0:00:10]} 47. Rg7 {[%clk 0:00:04]}  Kf5 {[%clk 0:00:11]} 48. Rf7+ {[%clk 0:00:04]}  Ke6 {[%clk 0:00:11]} 49. Rg7 {[%clk 0:00:04]}  Kf6 {[%clk 0:00:11]} 50. Rb7 {[%clk 0:00:05]}  g5 {[%clk 0:00:12]} 51. Rc7 {[%clk 0:00:00]}  Kg6 {[%clk 0:00:11]} 0-1


[Site "https://www.chess.com"]

[Event "Titled Tuesday Blitz July 11 Late 2023"]
[White "Krzywda, Andrzej"]
[Black "Veiga, Jose Francisco R P Neves"]
[WhiteFideId "1114565"]
[BlackFideId "1930087"]
[WhiteElo "2411"]
[BlackElo "2606"]
[Result "0-1"]
[Round "8"]
[TimeControl "180+2"]
[Date "2023.07.11"]
[WhiteClock "0:00:07"]
[BlackClock "0:00:07"]
[Board "60"]

1. e4 {[%clk 0:03:00]}  Nc6 {[%clk 0:02:56]} 2. Nf3 {[%clk 0:03:00]}  d6 {[%clk 0:02:56]} 3. d4 {[%clk 0:03:00]}  Nf6 {[%clk 0:02:56]} 4. Nc3 {[%clk 0:02:57]}  g6 {[%clk 0:02:56]} 5. h3 {[%clk 0:02:53]}  Bg7 {[%clk 0:02:56]} 6. Be3 {[%clk 0:02:51]}  a6 {[%clk 0:02:30]} 7. Be2 {[%clk 0:02:42]}  b5 {[%clk 0:02:30]} 8. a3 {[%clk 0:02:41]}  O-O {[%clk 0:02:29]} 9. O-O {[%clk 0:02:41]}  Bb7 {[%clk 0:02:29]} 10. d5 {[%clk 0:02:38]}  Nb8 {[%clk 0:02:29]} 11. Nd4 {[%clk 0:02:38]}  c6 {[%clk 0:02:27]} 12. dxc6 {[%clk 0:02:34]}  Nxc6 {[%clk 0:02:28]} 13. Nb3 {[%clk 0:02:25]}  Rc8 {[%clk 0:02:24]} 14. Re1 {[%clk 0:02:24]}  Ne5 {[%clk 0:02:13]} 15. Nd2 {[%clk 0:02:15]}  d5 {[%clk 0:02:10]} 16. Bf4 {[%clk 0:01:59]}  Nxe4 {[%clk 0:02:06]} 17. Ndxe4 {[%clk 0:01:44]}  dxe4 {[%clk 0:02:07]} 18. Qc1 {[%clk 0:01:36]}  Nc4 {[%clk 0:01:52]} 19. Bxc4 {[%clk 0:01:34]}  Rxc4 {[%clk 0:01:53]} 20. Bh6 {[%clk 0:01:31]}  Qc7 {[%clk 0:01:42]} 21. Bxg7 {[%clk 0:01:31]}  Kxg7 {[%clk 0:01:42]} 22. Qg5 {[%clk 0:01:20]}  h6 {[%clk 0:01:41]} 23. Qe3 {[%clk 0:01:17]}  Rd8 {[%clk 0:01:32]} 24. Qa7 {[%clk 0:01:10]}  Qc6 {[%clk 0:01:23]} 25. Qe3 {[%clk 0:01:06]}  e5 {[%clk 0:01:20]} 26. Rad1 {[%clk 0:01:03]}  Rcd4 {[%clk 0:01:20]} 27. Rc1 {[%clk 0:01:01]}  f5 {[%clk 0:01:19]} 28. h4 {[%clk 0:00:55]}  f4 {[%clk 0:01:17]} 29. Qh3 {[%clk 0:00:55]}  Bc8 {[%clk 0:00:49]} 30. Qh2 {[%clk 0:00:55]}  Bf5 {[%clk 0:00:49]} 31. Ne2 {[%clk 0:00:48]}  Rd2 {[%clk 0:00:48]} 32. Nc3 {[%clk 0:00:48]}  e3 {[%clk 0:00:45]} 33. fxe3 {[%clk 0:00:46]}  f3 {[%clk 0:00:46]} 34. Qxe5+ {[%clk 0:00:44]}  Kf7 {[%clk 0:00:35]} 35. e4 {[%clk 0:00:24]}  f2+ {[%clk 0:00:34]} 36. Kh1 {[%clk 0:00:23]}  fxe1=Q+ {[%clk 0:00:34]} 37. Rxe1 {[%clk 0:00:23]}  Rxc2 {[%clk 0:00:19]} 38. Nd5 {[%clk 0:00:18]}  Qd6 {[%clk 0:00:11]} 39. Qd4 {[%clk 0:00:13]}  Bh3 {[%clk 0:00:08]} 40. Rf1+ {[%clk 0:00:12]}  Kg8 {[%clk 0:00:04]} 41. Nf6+ {[%clk 0:00:11]}  Kh8 {[%clk 0:00:05]} 42. Qxd6 {[%clk 0:00:03]}  Rxd6 {[%clk 0:00:04]} 43. e5 {[%clk 0:00:04]}  Bxg2+ {[%clk 0:00:02]} 44. Kg1 {[%clk 0:00:04]}  Rdd2 {[%clk 0:00:02]} 45. e6 {[%clk 0:00:02]}  Bxf1 {[%clk 0:00:02]} 46. e7 {[%clk 0:00:03]}  Re2 {[%clk 0:00:03]} 47. Ne8 {[%clk 0:00:02]}  Rxe7 {[%clk 0:00:02]} 48. Kxf1 {[%clk 0:00:02]}  Rxe8 {[%clk 0:00:03]} 49. Kg1 {[%clk 0:00:03]}  Rxb2 {[%clk 0:00:03]} 50. Kf1 {[%clk 0:00:03]}  Rb3 {[%clk 0:00:04]} 51. Kf2 {[%clk 0:00:03]}  Rxa3 {[%clk 0:00:05]} 52. Kg2 {[%clk 0:00:04]}  b4 {[%clk 0:00:06]} 53. Kf1 {[%clk 0:00:04]}  b3 {[%clk 0:00:07]} 54. Kf2 {[%clk 0:00:05]}  b2 {[%clk 0:00:07]} 55. h5 {[%clk 0:00:06]}  b1=Q {[%clk 0:00:07]} 56. hxg6 {[%clk 0:00:07]}  Qf5+ {[%clk 0:00:07]} 57. Kg2 {[%clk 0:00:07]}  Re2+ {[%clk 0:00:07]} 58. Kg1 {[%clk 0:00:07]}  Ra1# {[%clk 0:00:07]} 0-1


[Site "https://www.chess.com"]

[Event "Titled Tuesday Blitz July 11 Late 2023"]
[White "Leon Oquendo, Jorge"]
[Black "Harriott, Tyrell"]
[WhiteFideId "3514803"]
[BlackFideId "2086484"]
[WhiteElo "2596"]
[BlackElo "2403"]
[Result "1-0"]
[Round "8"]
[TimeControl "180+2"]
[Date "2023.07.11"]
[WhiteClock "0:00:47"]
[BlackClock "0:00:49"]
[Board "61"]

1. d4 {[%clk 0:03:00]}  e6 {[%clk 0:03:00]} 2. c4 {[%clk 0:02:59]}  d5 {[%clk 0:03:00]} 3. Nc3 {[%clk 0:02:59]}  f5 {[%clk 0:03:00]} 4. Bf4 {[%clk 0:02:56]}  c6 {[%clk 0:02:59]} 5. e3 {[%clk 0:02:56]}  Bd6 {[%clk 0:02:57]} 6. Bxd6 {[%clk 0:02:55]}  Qxd6 {[%clk 0:02:57]} 7. Nf3 {[%clk 0:02:55]}  Ne7 {[%clk 0:02:56]} 8. Bd3 {[%clk 0:02:54]}  Ng6 {[%clk 0:02:56]} 9. g4 {[%clk 0:02:49]}  O-O {[%clk 0:02:54]} 10. gxf5 {[%clk 0:02:42]}  exf5 {[%clk 0:02:54]} 11. cxd5 {[%clk 0:02:43]}  cxd5 {[%clk 0:02:53]} 12. h4 {[%clk 0:02:37]}  Be6 {[%clk 0:02:50]} 13. h5 {[%clk 0:02:36]}  Nh8 {[%clk 0:02:50]} 14. h6 {[%clk 0:02:35]}  g6 {[%clk 0:02:50]} 15. Qb3 {[%clk 0:02:20]}  b6 {[%clk 0:02:39]} 16. Nb5 {[%clk 0:02:13]}  Qe7 {[%clk 0:02:26]} 17. Rc1 {[%clk 0:02:12]}  Na6 {[%clk 0:02:19]} 18. a3 {[%clk 0:02:11]}  Rfc8 {[%clk 0:02:13]} 19. Kd2 {[%clk 0:02:04]}  Nf7 {[%clk 0:02:12]} 20. Qa4 {[%clk 0:01:47]}  Nc7 {[%clk 0:02:05]} 21. Nxc7 {[%clk 0:01:34]}  Rxc7 {[%clk 0:02:02]} 22. Rxc7 {[%clk 0:01:35]}  Qxc7 {[%clk 0:02:01]} 23. Rc1 {[%clk 0:01:35]}  Qe7 {[%clk 0:01:45]} 24. Qc6 {[%clk 0:01:26]}  Rc8 {[%clk 0:01:34]} 25. Qxc8+ {[%clk 0:01:25]}  Bxc8 {[%clk 0:01:33]} 26. Rxc8+ {[%clk 0:01:26]}  Nd8 {[%clk 0:01:33]} 27. Ne5 {[%clk 0:01:26]}  Qh4 {[%clk 0:01:24]} 28. Be2 {[%clk 0:01:01]}  f4 {[%clk 0:01:21]} 29. Nc6 {[%clk 0:00:57]}  fxe3+ {[%clk 0:01:18]} 30. fxe3 {[%clk 0:00:58]}  Qxh6 {[%clk 0:01:14]} 31. Rxd8+ {[%clk 0:00:55]}  Kf7 {[%clk 0:01:13]} 32. Ne5+ {[%clk 0:00:53]}  Ke7 {[%clk 0:01:13]} 33. Rd7+ {[%clk 0:00:52]}  Ke8 {[%clk 0:01:08]} 34. Bb5 {[%clk 0:00:50]}  Qh3 {[%clk 0:01:06]} 35. Rxh7+ {[%clk 0:00:48]}  Kf8 {[%clk 0:00:52]} 36. Rxh3 {[%clk 0:00:48]}  Ke7 {[%clk 0:00:52]} 37. Nxg6+ {[%clk 0:00:47]}  Kf6 {[%clk 0:00:51]} 38. Nf4 {[%clk 0:00:47]}  Kf5 {[%clk 0:00:51]} 39. Bd3+ {[%clk 0:00:45]}  Kg4 {[%clk 0:00:50]} 40. Ke2 {[%clk 0:00:45]}  a6 {[%clk 0:00:50]} 41. Kf2 {[%clk 0:00:45]}  b5 {[%clk 0:00:49]} 42. Rg3+ {[%clk 0:00:45]}  Kh4 {[%clk 0:00:49]} 43. Kf3 {[%clk 0:00:46]}  b4 {[%clk 0:00:49]} 44. Rg4# {[%clk 0:00:47]} 1-0


[Site "https://www.chess.com"]

[Event "Titled Tuesday Blitz July 11 Late 2023"]
[White "Gerbelli Neto, Eduardo"]
[Black "Boldoo, Erdenepurev"]
[WhiteFideId "2103281"]
[BlackFideId "4901037"]
[WhiteElo "2355"]
[BlackElo "2566"]
[Result "0-1"]
[Round "8"]
[TimeControl "180+2"]
[Date "2023.07.11"]
[WhiteClock "0:00:19"]
[BlackClock "0:00:21"]
[Board "63"]

1. e4 {[%clk 0:03:00]}  g5 {[%clk 0:02:58]} 2. Nc3 {[%clk 0:02:57]}  e6 {[%clk 0:02:59]} 3. d4 {[%clk 0:02:57]}  h6 {[%clk 0:02:55]} 4. Be3 {[%clk 0:02:50]}  d5 {[%clk 0:02:55]} 5. e5 {[%clk 0:02:49]}  Ne7 {[%clk 0:02:51]} 6. Bd3 {[%clk 0:02:48]}  Nf5 {[%clk 0:02:52]} 7. Qd2 {[%clk 0:02:30]}  b6 {[%clk 0:02:40]} 8. Nge2 {[%clk 0:02:24]}  Ba6 {[%clk 0:02:37]} 9. Ng3 {[%clk 0:02:22]}  Qd7 {[%clk 0:02:31]} 10. Nxf5 {[%clk 0:02:08]}  exf5 {[%clk 0:02:27]} 11. f4 {[%clk 0:02:08]}  Bxd3 {[%clk 0:02:19]} 12. Qxd3 {[%clk 0:02:08]}  Be7 {[%clk 0:02:17]} 13. O-O-O {[%clk 0:02:03]}  Nc6 {[%clk 0:02:16]} 14. a3 {[%clk 0:01:59]}  O-O-O {[%clk 0:02:08]} 15. Rdf1 {[%clk 0:01:58]}  g4 {[%clk 0:02:07]} 16. h3 {[%clk 0:01:57]}  h5 {[%clk 0:02:06]} 17. Qa6+ {[%clk 0:01:52]}  Kb8 {[%clk 0:02:06]} 18. Nb5 {[%clk 0:01:46]}  Qc8 {[%clk 0:01:57]} 19. Qa4 {[%clk 0:01:44]}  a6 {[%clk 0:01:47]} 20. Nc3 {[%clk 0:01:43]}  b5 {[%clk 0:01:46]} 21. Qb3 {[%clk 0:01:37]}  Na5 {[%clk 0:01:46]} 22. Qa2 {[%clk 0:01:37]}  Nc4 {[%clk 0:01:46]} 23. Re1 {[%clk 0:01:26]}  Qe6 {[%clk 0:01:19]} 24. Nd1 {[%clk 0:01:05]}  Rdg8 {[%clk 0:01:12]} 25. Rhg1 {[%clk 0:00:55]}  Rg6 {[%clk 0:01:07]} 26. b4 {[%clk 0:00:42]}  Rhg8 {[%clk 0:01:01]} 27. hxg4 {[%clk 0:00:43]}  Rxg4 {[%clk 0:00:58]} 28. Re2 {[%clk 0:00:43]}  h4 {[%clk 0:00:56]} 29. a4 {[%clk 0:00:36]}  h3 {[%clk 0:00:47]} 30. axb5 {[%clk 0:00:33]}  axb5 {[%clk 0:00:38]} 31. Nc3 {[%clk 0:00:29]}  Rxg2 {[%clk 0:00:38]} 32. Rexg2 {[%clk 0:00:28]}  Rxg2 {[%clk 0:00:38]} 33. Re1 {[%clk 0:00:25]}  Nxe3 {[%clk 0:00:30]} 34. Rxe3 {[%clk 0:00:21]}  h2 {[%clk 0:00:30]} 35. Nxb5 {[%clk 0:00:21]}  h1=Q+ {[%clk 0:00:27]} 36. Kb2 {[%clk 0:00:21]}  Qb6 {[%clk 0:00:20]} 37. Ra3 {[%clk 0:00:21]}  Rxc2+ {[%clk 0:00:19]} 38. Kxc2 {[%clk 0:00:21]}  Qg2+ {[%clk 0:00:19]} 39. Kb1 {[%clk 0:00:20]}  Qxa2+ {[%clk 0:00:20]} 40. Kxa2 {[%clk 0:00:19]}  Qxb5 {[%clk 0:00:21]} 0-1


[Site "https://www.chess.com"]

[Event "Titled Tuesday Blitz July 11 Late 2023"]
[White "OllieAr"]
[Black "FromTexas54"]
[WhiteElo "2330"]
[BlackElo "2563"]
[Result "1/2-1/2"]
[Round "8"]
[TimeControl "180+2"]
[Date "2023.07.11"]
[WhiteClock "0:00:21"]
[BlackClock "0:00:27"]
[Board "64"]

1. Nf3 {[%clk 0:03:00]}  g6 {[%clk 0:02:59]} 2. c4 {[%clk 0:03:01]}  Bg7 {[%clk 0:02:59]} 3. Nc3 {[%clk 0:03:01]}  e5 {[%clk 0:02:59]} 4. d4 {[%clk 0:02:58]}  exd4 {[%clk 0:02:58]} 5. Nxd4 {[%clk 0:02:59]}  Ne7 {[%clk 0:02:58]} 6. e4 {[%clk 0:02:58]}  O-O {[%clk 0:02:59]} 7. Be2 {[%clk 0:02:58]}  d6 {[%clk 0:02:59]} 8. O-O {[%clk 0:02:58]}  f5 {[%clk 0:02:59]} 9. exf5 {[%clk 0:02:57]}  Nxf5 {[%clk 0:02:58]} 10. Nxf5 {[%clk 0:02:55]}  Rxf5 {[%clk 0:02:56]} 11. Bg4 {[%clk 0:02:36]}  Rf8 {[%clk 0:02:55]} 12. Bf3 {[%clk 0:02:28]}  Nc6 {[%clk 0:02:54]} 13. Be3 {[%clk 0:02:24]}  Be6 {[%clk 0:02:52]} 14. Bd5 {[%clk 0:02:23]}  Bxd5 {[%clk 0:02:44]} 15. Qxd5+ {[%clk 0:02:24]}  Kh8 {[%clk 0:02:44]} 16. a3 {[%clk 0:02:22]}  Qh4 {[%clk 0:02:33]} 17. Rad1 {[%clk 0:02:10]}  Rae8 {[%clk 0:02:32]} 18. Ne2 {[%clk 0:02:02]}  Re5 {[%clk 0:02:20]} 19. Qd2 {[%clk 0:01:58]}  Qxc4 {[%clk 0:02:13]} 20. Nd4 {[%clk 0:01:52]}  Nxd4 {[%clk 0:02:02]} 21. Bxd4 {[%clk 0:01:53]}  Re7 {[%clk 0:02:01]} 22. Bxg7+ {[%clk 0:01:49]}  Kxg7 {[%clk 0:01:58]} 23. Rc1 {[%clk 0:01:48]}  Qf7 {[%clk 0:01:58]} 24. Qd4+ {[%clk 0:01:45]}  Qf6 {[%clk 0:01:56]} 25. Qxa7 {[%clk 0:01:43]}  Qxb2 {[%clk 0:01:56]} 26. Rb1 {[%clk 0:01:37]}  Qc2 {[%clk 0:01:40]} 27. Rxb7 {[%clk 0:01:35]}  Rff7 {[%clk 0:01:33]} 28. Qd4+ {[%clk 0:01:31]}  Kh6 {[%clk 0:01:28]} 29. Rb2 {[%clk 0:01:22]}  Qe4 {[%clk 0:01:25]} 30. Qd2+ {[%clk 0:01:14]}  Kg7 {[%clk 0:01:24]} 31. Qc3+ {[%clk 0:01:11]}  Qe5 {[%clk 0:01:23]} 32. Qb3 {[%clk 0:01:11]}  h5 {[%clk 0:01:22]} 33. Rc2 {[%clk 0:01:08]}  h4 {[%clk 0:01:13]} 34. a4 {[%clk 0:01:07]}  Qg5 {[%clk 0:01:05]} 35. Ra2 {[%clk 0:01:02]}  Re5 {[%clk 0:01:01]} 36. Qc3 {[%clk 0:00:58]}  Kh7 {[%clk 0:00:58]} 37. a5 {[%clk 0:00:57]}  Ref5 {[%clk 0:00:53]} 38. a6 {[%clk 0:00:51]}  Rf3 {[%clk 0:00:53]} 39. Qa5 {[%clk 0:00:33]}  R3f5 {[%clk 0:00:33]} 40. Qa3 {[%clk 0:00:26]}  Rf3 {[%clk 0:00:32]} 41. Qa5 {[%clk 0:00:25]}  R3f5 {[%clk 0:00:27]} 42. Qa3 {[%clk 0:00:21]}  Rf3 {[%clk 0:00:27]} 43. Qa5 {[%clk 0:00:21]} 1/2-1/2


[Site "https://www.chess.com"]

[Event "Titled Tuesday Blitz July 11 Late 2023"]
[White "Michalczak, Thomas"]
[Black "Sala, Giulia"]
[WhiteFideId "4622634"]
[BlackFideId "2840451"]
[WhiteElo "2552"]
[BlackElo "2267"]
[Result "0-1"]
[Round "8"]
[TimeControl "180+2"]
[Date "2023.07.11"]
[WhiteClock "0:00:08"]
[BlackClock "0:00:54"]
[Board "67"]

1. e4 {[%clk 0:03:00]}  e6 {[%clk 0:02:14]} 2. d4 {[%clk 0:03:00]}  d5 {[%clk 0:02:14]} 3. Nc3 {[%clk 0:03:00]}  Nf6 {[%clk 0:02:13]} 4. e5 {[%clk 0:02:59]}  Nfd7 {[%clk 0:02:14]} 5. Nf3 {[%clk 0:02:55]}  c5 {[%clk 0:02:14]} 6. Bg5 {[%clk 0:02:55]}  Qb6 {[%clk 0:02:13]} 7. dxc5 {[%clk 0:02:55]}  Bxc5 {[%clk 0:02:14]} 8. Qd2 {[%clk 0:02:52]}  Nc6 {[%clk 0:02:14]} 9. Na4 {[%clk 0:02:47]}  Bxf2+ {[%clk 0:02:14]} 10. Qxf2 {[%clk 0:02:48]}  Qb4+ {[%clk 0:02:14]} 11. c3 {[%clk 0:02:38]}  Qxa4 {[%clk 0:02:09]} 12. Bd3 {[%clk 0:02:28]}  Ncxe5 {[%clk 0:02:09]} 13. Nxe5 {[%clk 0:02:22]}  Nxe5 {[%clk 0:02:10]} 14. Bc2 {[%clk 0:02:20]}  Qb5 {[%clk 0:02:03]} 15. O-O-O {[%clk 0:02:14]}  Bd7 {[%clk 0:01:54]} 16. Rd4 {[%clk 0:02:07]}  Nc4 {[%clk 0:01:52]} 17. Bd3 {[%clk 0:01:47]}  Rc8 {[%clk 0:01:50]} 18. b3 {[%clk 0:01:45]}  Qa5 {[%clk 0:01:46]} 19. Qc2 {[%clk 0:01:32]}  Na3 {[%clk 0:01:44]} 20. Qb2 {[%clk 0:01:10]}  Rxc3+ {[%clk 0:01:44]} 21. Kd1 {[%clk 0:01:10]}  Qc5 {[%clk 0:01:45]} 22. Be3 {[%clk 0:01:07]}  e5 {[%clk 0:01:36]} 23. Rxd5 {[%clk 0:00:50]}  Qxd5 {[%clk 0:01:06]} 24. Qxc3 {[%clk 0:00:50]}  e4 {[%clk 0:01:06]} 25. Bc5 {[%clk 0:00:38]}  Nb5 {[%clk 0:01:02]} 26. Qc4 {[%clk 0:00:18]}  Qxd3+ {[%clk 0:01:01]} 27. Qxd3 {[%clk 0:00:18]}  exd3 {[%clk 0:01:02]} 28. Re1+ {[%clk 0:00:18]}  Be6 {[%clk 0:01:03]} 29. a4 {[%clk 0:00:15]}  Nc3+ {[%clk 0:00:52]} 30. Kd2 {[%clk 0:00:15]}  Nd5 {[%clk 0:00:52]} 31. Kxd3 {[%clk 0:00:15]}  Kd7 {[%clk 0:00:53]} 32. Bxa7 {[%clk 0:00:15]}  Rc8 {[%clk 0:00:53]} 33. Bd4 {[%clk 0:00:15]}  f6 {[%clk 0:00:52]} 34. g3 {[%clk 0:00:11]}  Nb4+ {[%clk 0:00:52]} 35. Ke4 {[%clk 0:00:11]}  Bxb3 {[%clk 0:00:52]} 36. Re2 {[%clk 0:00:10]}  Re8+ {[%clk 0:00:52]} 37. Kf3 {[%clk 0:00:10]}  Bd5+ {[%clk 0:00:52]} 38. Kf2 {[%clk 0:00:10]}  Nd3+ {[%clk 0:00:53]} 39. Kf1 {[%clk 0:00:09]}  Bg2+ {[%clk 0:00:53]} 40. Rxg2 {[%clk 0:00:08]}  Re1# {[%clk 0:00:54]} 0-1


[Site "https://www.chess.com"]